bitfinex-derivatives/quotes_BNBF0:USTF0_20250112
["timestamp","ask_amount","ask_price","bid_price","bid_amount"]
[1736658603735,1.07778681,696.58,695.41,1.29253332]
[1736658604633,1.07778681,696.58,695.36,2.74206645]
[1736658604634,1.07778681,696.57,695.42,1.29253332]
[1736658606437,1.07778681,696.6,695.45,1.29253332]
[1736658607237,1.07778681,696.61,695.45,1.29253332]
[1736658608338,1.07778681,696.63,695.44,2.74206645]
[1736658609037,1.07778681,696.62,695.44,2.74206645]
[1736658609838,1.07778681,696.62,695.43,2.74206645]
[1736658610236,1.07778681,696.62,695.43,1.81263856]
[1736658610838,0.2870882,696.65,695.43,1.81263856]
[1736658611236,0.2870882,696.65,695.42,3.04307762]
[1736658611237,0.2870882,696.65,695.34,4.85571618]
[1736658611432,0.2870882,696.65,695.35,0.93140145]
[1736658611637,0.2870882,696.65,695.35,2.74404001]
[1736658612740,1.07778681,696.63,695.35,2.74404001]
[1736658614137,1.07778681,696.63,695.33,0.28763321]
[1736658615041,1.07778681,696.63,695.33,3.03167322]
[1736658615940,1.07778681,696.62,695.33,3.03167322]
[1736658616341,1.07778681,696.62,695.33,0.28763321]
[1736658616843,1.07778681,696.63,695.33,0.28763321]
[1736658618544,1.07778681,696.62,695.33,0.28763321]
[1736658620442,1.07778681,696.62,695.33,1.21903466]
[1736658620639,1.07778681,696.57,695.44,1.29253332]
[1736658621646,1.07778681,696.56,695.44,1.29253332]
[1736658622546,1.07778681,696.56,695.43,1.29253332]
[1736658623349,1.07778681,696.56,695.38,3.04307762]
[1736658623350,1.07778681,696.56,695.44,1.29253332]
[1736658624846,1.07778681,696.55,695.44,1.29253332]
[1736658625842,1.07778681,696.55,695.45,1.29253332]
[1736658626551,0.2870882,696.65,695.33,0.28763321]
[1736658632153,0.26400237,696.64,695.33,0.28763321]
[1736658632347,0.28709645,696.63,695.33,0.28763321]
[1736658632751,1.07778681,696.6,695.33,0.28763321]
[1736658632947,0.28711293,696.59,695.33,0.28763321]
[1736658635349,0.26400221,696.58,695.33,0.28763321]
[1736658635554,0.55111926,696.58,695.33,0.28763321]
[1736658635754,0.28711705,696.58,695.33,0.28763321]
[1736658635955,1.07778681,696.55,695.33,0.28763321]
[1736658636557,1.07778681,696.56,695.33,0.28763321]
[1736658638364,1.07778681,696.57,695.33,0.28763321]
[1736658640566,1.36490386,696.58,695.33,0.28763321]
[1736658641765,0.28711705,696.58,695.33,0.28763321]
[1736658648676,0.26400025,696.57,695.33,0.28763321]
[1736658648877,0.28711705,696.58,695.33,0.28763321]
[1736658652988,1.36490386,696.58,695.33,0.28763321]
[1736658654891,1.07778681,696.57,695.33,0.28763321]
[1736658656091,1.07778681,696.55,695.33,0.28763321]
[1736658657088,0.28711705,696.58,695.33,0.28763321]
[1736658659694,1.36490386,696.58,695.33,0.28763321]
[1736658660497,1.07778681,696.55,695.33,0.28763321]
[1736658661299,0.28711705,696.58,695.33,0.28763321]
[1736658664596,1.36490386,696.58,695.33,0.28763321]
[1736658665697,1.07778681,696.56,695.33,0.28763321]
[1736658665903,0.28712942,696.55,695.33,0.28763321]
[1736658666604,1.36491623,696.55,695.33,0.28763321]
[1736658667599,0.28712942,696.55,695.33,0.28763321]
[1736658677912,1.07778681,696.53,695.33,0.28763321]
[1736658679810,1.07778681,696.52,695.33,0.28763321]
[1736658680814,0.28712942,696.55,695.33,0.28763321]
[1736658681609,1.07778681,696.45,695.33,0.28763321]
[1736658683517,1.07778681,696.43,695.33,0.28763321]
[1736658684514,1.07778681,696.42,695.33,0.28763321]
[1736658687418,1.07778681,696.4,695.27,1.29253332]
[1736658688219,1.07778681,696.39,695.22,1.29253332]
[1736658688616,1.07778681,696.39,695.22,4.03757094]
[1736658688812,1.07778681,696.39,695.23,1.81408396]
[1736658689014,1.07778681,696.39,695.22,4.03757094]
[1736658689215,1.07778681,696.39,695.23,1.29253332]
[1736658690020,1.07778681,696.39,695.23,4.33922304]
[1736658690215,1.07778681,696.38,695.24,2.74503762]
[1736658691420,1.07778681,696.38,695.24,5.79172734]
[1736658691616,1.07778681,696.38,695.25,2.74503762]
[1736658692122,1.07778681,696.37,695.25,2.74503762]
[1736658692921,0.88989931,696.67,695.25,2.74503762]
[1736658692922,1.07778681,696.39,695.25,2.74503762]
[1736658693121,1.07778681,696.39,695.24,2.74503762]
[1736658694822,1.07778681,696.39,695.22,2.74503762]
[1736658695423,1.07778681,696.44,695.25,1.29253332]
[1736658697122,1.07778681,696.44,695.25,4.33922304]
[1736658697318,1.07778681,696.44,695.26,2.74503762]
[1736658698421,1.07778681,696.43,695.26,2.74503762]
[1736658698621,1.07778681,696.43,695.26,4.86077368]
[1736658699621,1.07778681,696.5,695.26,4.86077368]
[1736658699818,1.07778681,696.5,695.27,1.81408396]
[1736658700019,1.07778681,696.5,695.13,1.29253332]
[1736658701028,1.07778681,696.5,695.03,2.74704949]
[1736658701029,1.07778681,696.5,695.14,1.29253332]
[1736658703131,1.07778681,696.48,695.17,1.29253332]
[1736658703732,1.50032335,696.68,695.13,1.29253332]
[1736658703733,1.07778681,696.43,695.13,1.29253332]
[1736658707527,1.07778681,696.43,695.13,2.22549885]
[1736658707732,1.07778681,696.43,695.13,4.03958281]
[1736658707929,1.07778681,696.43,695.14,1.29253332]
[1736658708933,1.07778681,696.43,695.14,4.33922304]
[1736658709137,1.07778681,696.4,695.2,1.29253332]
[1736658710539,1.07778681,696.4,695.21,1.29253332]
[1736658711439,1.07778681,696.41,695.22,1.29253332]
[1736658712037,1.07778681,696.41,695.19,4.03958281]
[1736658713238,1.07778681,696.41,695.2,3.04668972]
[1736658713441,1.07778681,696.41,695.21,1.29253332]
[1736658713641,1.07778681,696.41,695.21,4.03958281]
[1736658714335,1.07778681,696.41,695.22,3.04668972]
[1736658714538,1.07778681,696.41,695.22,5.79373921]
[1736658714738,1.07778681,696.41,695.23,2.74704949]
[1736658714937,1.07778681,696.4,695.23,2.74704949]
[1736658715838,1.07778681,696.41,695.23,2.74704949]
[1736658717539,1.07778681,696.41,695.22,2.74704949]
[1736658717739,1.07778681,696.41,695.22,1.81408396]
[1736658717941,1.50032335,696.68,695.21,3.04668972]
[1736658718145,0.28707996,696.67,694.29,1.29253332]
[1736658718341,0.28707996,696.67,694.4,0.28801843]
[1736658728255,1.07778681,696.59,694.76,1.29253332]
[1736658728553,1.07778681,696.59,694.78,0.2878609]
[1736658728554,0.28711705,696.58,694.78,0.2878609]
[1736658739170,0.28711705,696.58,694.78,1.58039422]
[1736658740071,0.28711705,696.58,694.78,4.33272613]
[1736658740263,0.28711705,696.58,694.79,0.93257785]
[1736658740469,0.28711705,696.58,694.81,0.28784847]
[1736658740868,1.07778681,696.57,694.81,0.28784847]
[1736658741071,0.2871253,696.56,694.81,0.28784847]
[1736658744573,1.36491211,696.56,694.81,0.28784847]
[1736658746776,1.07778681,696.52,694.81,0.28784847]
[1736658747076,0.28714591,696.51,694.81,0.28784847]
[1736658751082,1.07778681,696.47,694.9,1.29253332]
[1736658751383,1.36494921,696.47,694.91,0.28780705]
[1736658752187,1.07778681,696.46,694.93,1.29253332]
[1736658752577,1.07778681,696.46,694.94,0.28779462]
[1736658753285,1.07778681,696.44,694.94,1.58032794]
[1736658754285,1.07778681,696.45,694.94,1.58032794]
[1736658754478,1.36495746,696.45,694.94,1.58032794]
[1736658754984,1.36495746,696.45,694.94,0.28779462]
[1736658757380,1.07778681,696.42,694.94,0.28779462]
[1736658758379,1.07778681,696.43,694.94,0.28779462]
[1736658760187,1.07778681,696.44,694.94,0.28779462]
[1736658762188,1.07778681,696.43,694.94,0.28779462]
[1736658763088,1.07778681,696.36,695.12,1.29253332]
[1736658767295,1.07778681,696.32,695.14,1.29253332]
[1736658768192,1.07778681,696.31,695.14,1.29253332]
[1736658769190,1.07778681,696.32,695.14,1.29253332]
[1736658769793,1.07778681,696.32,695.14,2.22466931]
[1736658769995,1.07778681,696.35,695.18,1.29253332]
[1736658772490,1.07778681,696.35,695.18,2.22466931]
[1736658772693,1.07778681,696.35,695.18,4.04442337]
[1736658774295,1.07778681,696.35,695.19,3.04972679]
[1736658774497,1.07778681,696.35,695.19,5.80161684]
[1736658774795,1.07778681,696.35,695.2,2.75189005]
[1736658775291,1.07778681,696.34,695.2,2.75189005]
[1736658777091,1.07778681,696.33,695.2,2.75189005]
[1736658779198,1.07778681,696.28,695.2,2.75189005]
[1736658780297,1.07778681,696.27,695.2,2.75189005]
[1736658780597,1.07778681,696.27,695.15,2.75189005]
[1736658782198,1.07778681,696.26,695.15,2.75189005]
[1736658783099,1.07778681,696.27,695.15,2.75189005]
[1736658785395,1.07778681,696.27,695.14,2.75189005]
[1736658785902,1.07778681,696.28,695.14,2.75189005]
[1736658786302,1.07778681,696.28,695.14,5.80161684]
[1736658786502,1.07778681,696.28,695.15,2.75189005]
[1736658789103,1.07778681,696.29,695.15,2.75189005]
[1736658790206,0.28717065,696.45,695.15,2.75189005]
[1736658790207,1.07778681,696.3,695.15,4.04442337]
[1736658792105,1.07778681,696.3,695.16,3.04972679]
[1736658792306,1.07778681,696.3,695.16,5.80161684]
[1736658792509,1.07778681,696.3,695.17,2.75189005]
[1736658793711,1.07778681,696.33,695.18,1.29253332]
[1736658794912,1.07778681,696.33,695.18,4.34226011]
[1736658795114,1.07778681,696.33,695.19,2.75189005]
[1736658795912,1.07778681,696.33,695.19,5.80161684]
[1736658796214,1.07778681,696.33,695.2,2.75189005]
[1736658798815,1.07778681,696.32,695.2,2.75189005]
[1736658801815,1.07778681,696.27,695.2,2.75189005]
[1736658802521,1.07778681,696.27,695.16,2.75189005]
[1736658804713,1.07778681,696.27,695.16,5.80161684]
[1736658804914,1.07778681,696.27,695.17,2.75189005]
[1736658806120,1.07778681,696.26,695.17,2.75189005]
[1736658807318,1.07778681,696.27,695.17,2.75189005]
[1736658808523,1.07778681,696.3,695.19,1.29253332]
[1736658810325,1.07778681,696.31,695.19,0.93213599]
[1736658810526,1.07778681,696.31,695.19,2.75189005]
[1736658811226,1.07778681,696.31,695.2,1.29253332]
[1736658811527,1.07778681,696.31,695.2,4.34226011]
[1736658811727,1.07778681,696.31,695.21,2.75189005]
[1736658812827,1.07778681,696.31,695.21,5.80161684]
[1736658813027,1.07778681,696.31,695.22,2.75189005]
[1736658814528,1.07778681,696.31,695.22,1.81975406]
[1736658814727,1.07778681,696.31,695.21,3.04972679]
[1736658815123,1.07778681,696.37,695.21,3.04972679]
[1736658815325,1.07778681,696.37,695.05,2.75322271]
[1736658815828,1.07778681,696.37,695.05,0.93333581]
[1736658816038,1.07778681,696.33,695.0,1.29253332]
[1736658816222,1.07778681,696.33,695.01,0.28776564]
[1736658819925,1.07778681,696.33,695.01,1.22110145]
[1736658820228,1.07778681,696.32,695.02,1.29253332]
[1736658820425,1.07778681,696.32,695.03,0.28775736]
[1736658820826,1.07778681,696.31,695.03,0.28775736]
[1736658821527,1.07778681,696.31,695.03,1.22109317]
[1736658821822,1.07778681,696.32,695.03,4.33351339]
[1736658822027,1.07778681,696.32,695.04,0.93333581]
[1736658822523,1.07778681,696.32,695.04,3.9830626]
[1736658822722,1.07778681,696.32,695.05,1.8198869]
[1736658822922,0.2871253,696.56,695.08,1.29253332]
[1736658822923,1.07778681,696.37,695.08,1.29253332]
[1736658824327,1.07778681,696.36,695.09,1.29253332]
[1736658825129,1.07778681,696.36,695.1,1.29253332]
[1736658826925,1.07778681,696.36,695.1,4.34226011]
[1736658827127,1.07778681,696.36,695.11,2.75322271]
[1736658827929,1.07778681,696.36,695.11,5.8029495]
[1736658828125,1.07778681,696.36,695.12,2.75322271]
[1736658828532,1.07778681,696.37,695.12,2.75322271]
[1736658829533,1.07778681,696.36,695.12,2.75322271]
[1736658830536,1.07778681,696.33,695.12,2.75322271]
[1736658830729,1.07778681,696.33,695.12,5.8029495]
[1736658830926,1.07778681,696.33,695.13,2.75322271]
[1736658831327,1.07778681,696.33,695.13,1.8198869]
[1736658831732,1.07778681,696.33,695.12,3.04972679]
[1736658832133,1.07778681,696.33,695.07,1.82006325]
[1736658832334,1.07778681,696.33,695.06,1.29253332]
[1736658832535,1.07778681,696.41,695.04,1.82006325]
[1736658832732,1.07778681,696.41,695.03,0.28775736]
[1736658835338,1.07778681,696.39,695.03,0.28775736]
[1736658836139,1.07778681,696.41,695.03,0.28775736]
[1736658838042,1.07778681,696.43,695.03,0.28775736]
[1736658841644,1.07778681,696.42,695.03,0.28775736]
[1736658841844,1.07778681,696.42,695.03,1.58029068]
[1736658842241,1.07778681,696.42,695.03,4.33374398]
[1736658842446,1.07778681,696.42,695.04,0.93339005]
[1736658842746,1.07778681,696.35,695.2,1.29253332]
[1736658845655,1.07778681,696.35,695.16,2.7534533]
[1736658845656,1.07778681,696.31,695.16,4.04598662]
[1736658846151,1.07778681,696.31,695.17,3.04972679]
[1736658846452,1.07778681,696.31,695.17,5.80318009]
[1736658846652,1.07778681,696.31,695.18,2.7534533]
[1736658851154,1.07778681,696.3,695.18,2.7534533]
[1736658852757,1.07778681,696.3,695.17,2.7534533]
[1736658855257,1.07778681,696.3,695.17,5.80318009]
[1736658855457,1.07778681,696.3,695.18,2.7534533]
[1736658857059,1.07778681,696.29,695.18,2.7534533]
[1736658859060,0.88956707,696.55,695.18,2.7534533]
[1736658859061,1.07778681,696.3,695.18,2.7534533]
[1736658860462,1.07778681,696.3,695.17,2.7534533]
[1736658860662,1.07778681,696.33,695.18,1.29253332]
[1736658861661,1.07778681,696.33,695.18,4.34226011]
[1736658861861,1.07778681,696.33,695.19,2.7534533]
[1736658862863,1.07778681,696.33,695.19,5.80318009]
[1736658863163,1.07778681,696.33,695.2,2.7534533]
[1736658865565,1.07778681,696.33,695.2,5.80318009]
[1736658865765,1.07778681,696.33,695.21,2.7534533]
[1736658868568,0.2871253,696.56,695.22,1.29253332]
[1736658868569,1.07778681,696.35,695.22,1.29253332]
[1736658869167,1.07778681,696.37,695.21,4.04598662]
[1736658869767,1.07778681,696.37,695.22,3.04972679]
[1736658869966,1.07778681,696.37,695.22,5.80318009]
[1736658870167,1.07778681,696.37,695.23,2.7534533]
[1736658870969,1.07778681,696.38,695.23,2.7534533]
[1736658871366,1.07778681,696.38,695.22,2.7534533]
[1736658871971,1.07778681,696.39,695.22,2.7534533]
[1736658873474,1.07778681,696.39,695.21,2.7534533]
[1736658873977,1.07778681,696.43,695.21,2.7534533]
[1736658874571,1.07778681,696.43,695.19,2.7534533]
[1736658874871,0.2871253,696.56,695.19,2.7534533]
[1736658874872,1.07778681,696.44,695.19,2.7534533]
[1736658875775,1.07778681,696.46,695.19,4.04598662]
[1736658876770,1.07778681,696.52,695.23,1.29253332]
[1736658877975,0.2871253,696.56,695.21,2.7534533]
[1736658878578,0.2871253,696.56,695.18,2.7534533]
[1736658878878,0.2871253,696.56,695.19,0.28769113]
[1736658881080,0.2871253,696.56,695.19,1.58022445]
[1736658881676,0.2871253,696.56,695.19,2.5136145]
[1736658881878,0.2871253,696.56,695.19,0.28769113]
[1736658897990,0.2871253,696.56,695.21,1.29253332]
[1736658898986,0.2871253,696.56,695.22,1.29253332]
[1736658900885,0.2871253,696.56,695.24,1.29253332]
[1736658901587,0.2871253,696.56,695.25,0.2876663]
[1736658902092,0.2871253,696.56,695.25,1.58019962]
[1736658903193,0.2871253,696.56,695.26,1.29253332]
[1736658903394,0.2871253,696.56,695.27,0.28765803]
[1736658903789,0.2871253,696.56,695.27,1.58019135]
[1736658905697,0.2871253,696.56,695.27,0.28765803]
[1736658906898,0.2871253,696.56,695.27,1.58019135]
[1736658907896,0.2871253,696.56,695.29,1.29253332]
[1736658908899,0.2871253,696.56,695.27,2.5135814]
[1736658909295,0.2871253,696.56,695.27,5.56330819]
[1736658909497,0.2871253,696.56,695.28,2.7534533]
[1736658909900,0.2871253,696.56,695.3,1.29253332]
[1736658910101,0.2871253,696.56,695.31,0.28764148]
[1736658910896,0.2871253,696.56,695.31,1.5801748]
[1736658911301,0.2871253,696.56,695.31,2.51356485]
[1736658912504,0.2871253,696.56,695.31,5.56329164]
[1736658912705,0.2871253,696.56,695.32,2.7534533]
[1736658912905,0.2871253,696.56,695.32,4.04598662]
[1736658913204,0.2871253,696.56,695.33,0.28763321]
[1736658913404,0.2871253,696.56,695.33,1.22102326]
[1736658913803,0.2871253,696.56,695.33,4.27075005]
[1736658914004,0.2871253,696.56,695.34,1.82006325]
[1736658914205,0.2871253,696.56,695.35,0.28762493]
[1736658915306,0.2871253,696.56,695.35,3.33735172]
[1736658915501,0.2871253,696.56,695.36,1.82006325]
[1736658915701,0.2871253,696.56,695.37,0.28761666]
[1736658931718,0.2871253,696.56,695.39,1.29253332]
[1736658932014,0.2871253,696.56,695.4,0.28760425]
[1736658933409,0.2871253,696.56,695.4,1.58013757]
[1736658934317,0.2871253,696.56,695.41,1.29253332]
[1736658936115,0.2871253,696.56,695.4,0.28760425]
[1736658974752,1.07778681,696.55,695.41,1.29253332]
[1736658975547,1.07778681,696.54,695.42,1.29253332]
[1736658979253,1.07778681,696.54,695.42,4.34226011]
[1736658979453,1.07778681,696.54,695.43,2.74519192]
[1736658980855,1.07778681,696.51,695.43,5.79491871]
[1736658981058,1.07778681,696.51,695.44,2.74519192]
[1736658982355,1.07778681,696.51,695.41,2.74519192]
[1736658983255,1.07778681,696.52,695.41,2.74519192]
[1736658983954,1.07778681,696.52,695.4,3.33733104]
[1736658985152,0.2871253,696.56,695.4,3.33733104]
[1736658985357,0.2871253,696.56,695.4,0.28760425]
[1736658994262,1.36491211,696.56,695.4,0.28760425]
[1736658995969,1.07778681,696.52,695.4,0.28760425]
[1736658996868,1.07778681,696.53,695.4,0.28760425]
[1736658997667,1.07778681,696.52,695.4,0.28760425]
[1736659003766,1.07778681,696.55,695.4,0.28760425]
[1736659004973,1.07778681,696.54,695.4,0.28760425]
[1736659005175,1.07778681,696.54,695.4,3.0367295]
[1736659005771,1.07778681,696.53,695.4,3.0367295]
[1736659006574,1.07778681,696.53,695.4,0.28760425]
[1736659009075,1.07778681,696.52,695.4,0.28760425]
[1736659009972,0.2871253,696.56,695.4,0.28760425]
[1736659018779,0.26401441,696.55,695.4,0.28760425]
[1736659018985,0.28713354,696.54,695.4,0.28760425]
[1736659019184,1.07778681,696.49,695.4,0.28760425]
[1736659022285,1.07778681,696.5,695.4,0.28760425]
[1736659023490,1.07778681,696.51,695.4,0.28760425]
[1736659024787,1.36492035,696.54,695.4,0.28760425]
[1736659025782,1.07778681,696.5,695.4,0.28760425]
[1736659026985,1.07778681,696.49,695.4,0.28760425]
[1736659027783,1.07778681,696.48,695.4,0.28760425]
[1736659029782,1.07778681,696.52,695.4,0.28760425]
[1736659029983,0.26402279,696.51,695.4,0.28760425]
[1736659030781,1.07778681,696.46,695.4,0.28760425]
[1736659036190,1.07778681,696.45,695.4,0.28760425]
[1736659037390,1.07778681,696.44,695.4,0.28760425]
[1736659038292,1.07778681,696.43,695.4,0.28760425]
[1736659039192,0.28713354,696.54,695.4,0.28760425]
[1736659039193,1.07778681,696.42,695.4,0.28760425]
[1736659040293,1.07778681,696.41,695.4,0.28760425]
[1736659041495,1.07778681,696.42,695.4,0.28760425]
[1736659042895,1.07778681,696.41,695.4,0.28760425]
[1736659047597,1.07778681,696.4,695.4,0.28760425]
[1736659048893,1.07778681,696.41,695.4,0.28760425]
[1736659050102,1.07778681,696.38,695.4,0.28760425]
[1736659051102,1.07778681,696.37,695.4,0.28760425]
[1736659052302,1.07778681,696.36,695.4,0.28760425]
[1736659053904,1.07778681,696.35,695.4,0.28760425]
[1736659054701,1.07778681,696.34,695.4,0.28760425]
[1736659058500,1.07778681,696.31,695.4,0.28760425]
[1736659059300,1.07778681,696.3,695.4,0.28760425]
[1736659060307,1.07778681,696.31,695.4,0.28760425]
[1736659061307,1.07778681,696.32,695.4,0.28760425]
[1736659062203,1.07778681,696.31,695.4,0.28760425]
[1736659063102,1.07778681,696.33,695.4,0.28760425]
[1736659066006,1.07778681,696.34,695.4,0.28760425]
[1736659069307,1.07778681,696.34,695.23,2.74855874]
[1736659069708,1.07778681,696.32,695.23,2.74855874]
[1736659070815,1.07778681,696.27,695.21,2.74855874]
[1736659072414,1.07778681,696.27,695.14,2.74855874]
[1736659073115,1.07778681,696.28,695.14,2.74855874]
[1736659074712,0.88965762,696.53,695.14,2.74855874]
[1736659074713,1.07778681,696.29,695.14,2.74855874]
[1736659075715,1.07778681,696.3,695.14,2.74855874]
[1736659076308,1.07778681,696.3,695.14,5.79497619]
[1736659076513,1.07778681,696.3,695.15,2.74855874]
[1736659078718,1.07778681,696.34,695.17,1.29253332]
[1736659079418,1.07778681,696.35,695.18,1.29253332]
[1736659080418,1.07778681,696.36,695.18,1.29253332]
[1736659081118,1.07778681,696.36,695.18,4.33895077]
[1736659081310,1.07778681,696.36,695.19,2.74855874]
[1736659082217,1.07778681,696.36,695.19,5.79497619]
[1736659082414,1.07778681,696.36,695.2,2.74855874]
[1736659082919,1.36492035,696.54,695.2,2.74855874]
[1736659082920,1.07778681,696.32,695.2,1.81751559]
[1736659083717,1.07778681,696.32,695.19,3.04641745]
[1736659083918,1.07778681,696.32,695.15,0.93273937]
[1736659084220,1.07778681,696.31,695.14,0.93273937]
[1736659084418,1.07778681,696.31,695.1,1.29253332]
[1736659085019,1.07778681,696.32,695.1,1.29253332]
[1736659086217,1.07778681,696.32,695.07,2.75025496]
[1736659086218,1.07778681,696.32,695.09,1.29253332]
[1736659087421,1.07778681,696.29,695.09,2.22527269]
[1736659087620,1.07778681,696.29,695.09,4.04278828]
[1736659088216,1.07778681,696.29,695.09,2.75025496]
[1736659088922,1.07778681,696.29,695.1,0.28772838]
[1736659098031,0.28713354,696.54,695.1,0.28772838]
[1736659110236,0.28713354,696.54,695.15,1.29253332]
[1736659110438,0.28713354,696.54,695.16,0.28770355]
[1736659111342,0.28713354,696.54,695.16,1.58023687]
[1736659113644,0.28713354,696.54,695.17,1.29253332]
[1736659113846,0.28713354,696.54,695.17,1.58023273]
[1736659114738,0.28713354,696.54,695.17,0.28769941]
[1736659115139,0.26401786,696.53,695.17,0.28769941]
[1736659115344,0.55115552,696.53,695.17,0.28769941]
[1736659115546,1.07778681,696.5,695.17,0.28769941]
[1736659116448,0.28713766,696.53,695.17,0.28769941]
[1736659116449,1.07778681,696.46,695.17,0.28769941]
[1736659117942,1.07778681,696.44,695.17,0.28769941]
[1736659118846,1.07778681,696.43,695.17,0.28769941]
[1736659119450,1.07778681,696.42,695.17,0.28769941]
[1736659120450,1.07778681,696.41,695.17,0.28769941]
[1736659121648,1.07778681,696.37,695.17,0.28769941]
[1736659122445,1.07778681,696.38,695.17,0.28769941]
[1736659124349,1.07778681,696.36,695.17,0.28769941]
[1736659126355,1.07778681,696.35,695.17,0.28769941]
[1736659127258,1.07778681,696.36,695.17,0.28769941]
[1736659128257,1.07778681,696.38,695.17,0.28769941]
[1736659129857,1.07778681,696.4,695.17,0.28769941]
[1736659130859,1.07778681,696.43,695.17,0.28769941]
[1736659131961,1.07778681,696.44,695.17,0.28769941]
[1736659132662,1.07778681,696.45,695.17,0.28769941]
[1736659132853,0.26406128,696.44,695.17,0.28769941]
[1736659133660,0.26406128,696.43,695.17,0.28769941]
[1736659134561,0.26406193,696.42,695.17,0.28769941]
[1736659134763,0.26406193,696.41,695.17,0.28769941]
[1736659134961,0.26406193,696.4,695.17,0.28769941]
[1736659135163,0.26406193,696.39,695.17,0.28769941]
[1736659135364,0.26406193,696.38,695.17,0.28769941]
[1736659135564,0.26406193,696.37,695.17,0.28769941]
[1736659135862,1.07778681,696.39,695.17,0.28769941]
[1736659136056,0.26407724,696.38,695.17,0.28769941]
[1736659136863,0.26407724,696.37,695.17,0.28769941]
[1736659137063,1.07778681,696.4,695.17,0.28769941]
[1736659137258,0.26407705,696.39,695.17,0.28769941]
[1736659138364,1.07778681,696.36,695.17,0.28769941]
[1736659143169,1.07778681,696.52,695.17,0.28769941]
[1736659143568,0.28715003,696.5,695.17,0.28769941]
[1736659148680,1.07778681,696.48,695.17,0.28769941]
[1736659148876,0.2871624,696.47,695.17,0.28769941]
[1736659149479,1.5010352,696.46,695.17,0.28769941]
[1736659149678,0.28717065,696.45,695.17,0.28769941]
[1736659150574,0.28717065,696.45,694.37,1.29253332]
[1736659150775,0.28717065,696.45,694.39,0.28802258]
[1736659151375,1.07778681,696.42,694.39,0.28802258]
[1736659153583,0.28717065,696.45,694.39,0.28802258]
[1736659160089,0.26414293,696.44,694.39,0.28802258]
[1736659160588,0.26414322,696.43,694.39,0.28802258]
[1736659160780,0.26414322,696.42,694.39,0.28802258]
[1736659160983,0.26414322,696.41,694.39,0.28802258]
[1736659161187,0.26414322,696.4,694.39,0.28802258]
[1736659161490,1.07778681,696.32,694.51,1.29253332]
[1736659161689,0.26414322,696.31,694.51,1.29253332]
[1736659162089,1.07778681,696.38,694.58,1.29253332]
[1736659162286,0.26414393,696.37,694.58,1.29253332]
[1736659162485,0.28720776,696.36,694.6,0.2879355]
[1736659162688,0.26414393,696.35,694.6,0.2879355]
[1736659163887,0.28721601,696.34,694.6,0.2879355]
[1736659164091,0.26414393,696.33,694.6,0.2879355]
[1736659164294,0.28722426,696.32,694.6,0.2879355]
[1736659173904,1.36501107,696.32,694.6,0.2879355]
[1736659174802,0.26414772,696.31,694.6,0.2879355]
[1736659175003,1.07778681,696.29,694.6,0.2879355]
[1736659175205,0.55138848,696.28,694.6,0.2879355]
[1736659175406,0.55139261,696.27,694.6,0.2879355]
[1736659175607,0.55139673,696.26,694.6,0.2879355]
[1736659175807,1.07778681,696.15,694.71,1.29253332]
[1736659176004,1.07778681,696.15,694.72,0.28788576]
[1736659176907,1.07778681,696.14,694.74,1.29253332]
[1736659177306,1.07778681,696.14,694.75,0.28787333]
[1736659178108,1.07778681,696.13,694.75,0.28787333]
[1736659180303,1.07778681,696.12,694.76,1.29253332]
[1736659180508,1.07778681,696.12,694.77,0.28786504]
[1736659180913,1.07778681,696.08,694.77,0.28786504]
[1736659182109,1.07778681,696.07,694.77,0.28786504]
[1736659183010,1.07778681,696.06,694.77,0.28786504]
[1736659184111,1.07778681,696.12,694.77,0.28786504]
[1736659185009,1.07778681,696.11,694.77,0.28786504]
[1736659186416,1.07778681,696.1,694.77,0.28786504]
[1736659187019,1.07778681,696.09,694.77,0.28786504]
[1736659188018,1.07778681,696.05,694.77,0.28786504]
[1736659189721,1.07778681,696.04,694.77,0.28786504]
[1736659190822,1.07778681,696.07,694.77,0.28786504]
[1736659191619,1.07778681,696.09,694.77,0.28786504]
[1736659191921,1.36510597,696.09,694.77,0.28786504]
[1736659193520,1.07778681,696.08,694.77,0.28786504]
[1736659194922,1.3651101,696.08,694.77,0.28786504]
[1736659195124,0.28732742,696.07,694.77,0.28786504]
[1736659196833,1.07778681,696.05,694.77,0.28786504]
[1736659197127,0.2873398,696.04,694.77,0.28786504]
[1736659199224,0.26422169,696.03,694.77,0.28786504]
[1736659199421,0.28734806,696.02,694.77,0.28786504]
[1736659199626,0.26422169,696.01,694.77,0.28786504]
[1736659199828,0.28735632,696.0,694.77,0.28786504]
[1736659205425,0.26422535,695.99,694.77,0.28786504]
[1736659206131,0.28735632,696.0,694.77,0.28786504]
[1736659213738,1.07778681,695.98,694.77,0.28786504]
[1736659214437,1.07778681,695.97,694.77,0.28786504]
[1736659215532,1.07778681,695.96,694.77,0.28786504]
[1736659216340,1.07778681,695.95,694.77,0.28786504]
[1736659217337,1.07778681,695.93,694.77,0.28786504]
[1736659218435,1.07778681,695.92,694.77,0.28786504]
[1736659219942,1.07778681,695.91,694.77,0.28786504]
[1736659221338,1.07778681,695.89,694.77,0.28786504]
[1736659222341,1.07778681,695.92,694.77,0.28786504]
[1736659224335,1.07778681,695.91,694.77,0.28786504]
[1736659226343,1.07778681,695.94,694.77,0.28786504]
[1736659227346,1.07778681,695.97,694.77,0.28786504]